[Event "World Junior Chess Championship U20 2022"]
[White "Gadimbayli, Abdulla"]
[Black "Vestby-Ellingsen, Mads"]
[WhiteFideId "13404938"]
[BlackFideId "1520857"]
[WhiteElo "2499"]
[BlackElo "2365"]
[Result "1-0"]
[Round "03"]
[TimeControl "5400+30"]
[Date "2022.10.13"]
[WhiteClock "0:14:29"]
[BlackClock "0:00:33"]

1. e4 {[%clk 1:30:50]}  e5 {[%clk 1:29:47]} 2. Nf3 {[%clk 1:31:10]}  Nc6 {[%clk 1:30:01]} 3. Bb5 {[%clk 1:31:02]}  a6 {[%clk 1:30:13]} 4. Ba4 {[%clk 1:31:28]}  Nf6 {[%clk 1:30:25]} 5. d4 {[%clk 1:31:33]}  exd4 {[%clk 1:29:44]} 6. O-O {[%clk 1:31:31]}  Be7 {[%clk 1:27:10]} 7. e5 {[%clk 1:31:01]}  Ne4 {[%clk 1:27:13]} 8. Nxd4 {[%clk 1:30:11]}  Nc5 {[%clk 1:02:26]} 9. Nf5 {[%clk 1:25:50]}  O-O {[%clk 0:55:09]} 10. Qg4 {[%clk 1:25:15]}  g6 {[%clk 0:55:25]} 11. Bxc6 {[%clk 1:23:57]}  dxc6 {[%clk 0:55:38]} 12. Nxe7+ {[%clk 1:24:09]}  Qxe7 {[%clk 0:55:57]} 13. Qg3 {[%clk 1:24:36]}  Re8 {[%clk 0:54:48]} 14. Re1 {[%clk 1:22:06]}  f6 {[%clk 0:50:04]} 15. Nc3 {[%clk 0:58:52]}  Bf5 {[%clk 0:47:39]} 16. Bf4 {[%clk 0:51:15]}  Bxc2 {[%clk 0:38:04]} 17. Re3 {[%clk 0:42:47]}  fxe5 {[%clk 0:31:41]} 18. Bxe5 {[%clk 0:41:00]}  Qf7 {[%clk 0:27:44]} 19. Rae1 {[%clk 0:34:12]}  Bf5 {[%clk 0:19:47]} 20. h4 {[%clk 0:30:21]}  Nd7 {[%clk 0:14:12]} 21. Bxc7 {[%clk 0:28:11]}  Rxe3 {[%clk 0:14:24]} 22. Qxe3 {[%clk 0:25:03]}  Nf6 {[%clk 0:14:30]} 23. Bb6 {[%clk 0:23:27]}  Re8 {[%clk 0:14:13]} 24. Qd2 {[%clk 0:23:51]}  Rxe1+ {[%clk 0:11:27]} 25. Qxe1 {[%clk 0:24:18]}  Qe6 {[%clk 0:10:19]} 26. Qd2 {[%clk 0:22:19]}  Nd5 {[%clk 0:07:20]} 27. Bd4 {[%clk 0:19:41]}  Nxc3 {[%clk 0:06:51]} 28. Bxc3 {[%clk 0:19:47]}  Qd5 {[%clk 0:07:07]} 29. Qf4 {[%clk 0:19:10]}  Qd7 {[%clk 0:03:14]} 30. Qe5 {[%clk 0:17:08]}  h5 {[%clk 0:03:37]} 31. Qh8+ {[%clk 0:17:12]}  Kf7 {[%clk 0:04:00]} 32. Qg7+ {[%clk 0:17:38]}  Ke8 {[%clk 0:01:40]} 33. Qh8+ {[%clk 0:13:40]}  Kf7 {[%clk 0:01:52]} 34. Qf6+ {[%clk 0:14:08]}  Ke8 {[%clk 0:00:56]} 35. Bb4 {[%clk 0:14:29]}  Qf7 {[%clk 0:00:37]} 36. Qh8+ {[%clk 0:14:02]}  Kd7 {[%clk 0:01:01]} 37. Qb8 {[%clk 0:14:30]}  Qc4 {[%clk 0:00:33]} 38. Qxb7+ {[%clk 0:13:05]}  Kd8 {[%clk 0:00:32]} 39. Qe7+ {[%clk 0:13:33]}  Kc8 {[%clk 0:00:50]} 40. Bd6 {[%clk 0:14:00]}  Qc1+ {[%clk 0:00:33]} 41. Kh2 {[%clk 0:14:29]} 1-0


[Site "http://www.chessbomb.com"]

[Event "World Junior Chess Championship U20 2022"]
[White "Jakab, Bela"]
[Black "Zhu, Jiner"]
[WhiteFideId "14933128"]
[BlackFideId "8608059"]
[WhiteElo "2353"]
[BlackElo "2484"]
[Result "1/2-1/2"]
[Round "03"]
[TimeControl "5400+30"]
[Date "2022.10.13"]
[WhiteClock "0:35:32"]
[BlackClock "0:46:00"]

1. e4 {[%clk 1:30:57]}  c5 {[%clk 1:30:48]} 2. c3 {[%clk 1:31:23]}  d5 {[%clk 1:31:07]} 3. exd5 {[%clk 1:31:48]}  Qxd5 {[%clk 1:31:07]} 4. d4 {[%clk 1:32:09]}  Nc6 {[%clk 1:31:49]} 5. Nf3 {[%clk 1:32:34]}  Nf6 {[%clk 1:32:10]} 6. Be3 {[%clk 1:32:35]}  cxd4 {[%clk 1:31:49]} 7. cxd4 {[%clk 1:32:40]}  e6 {[%clk 1:32:11]} 8. Nc3 {[%clk 1:32:09]}  Qd6 {[%clk 1:32:27]} 9. Bd3 {[%clk 1:30:59]}  Be7 {[%clk 1:30:42]} 10. O-O {[%clk 1:29:36]}  O-O {[%clk 1:31:02]} 11. Nb5 {[%clk 1:25:26]}  Qd8 {[%clk 1:31:15]} 12. Ne5 {[%clk 1:23:54]}  Nxe5 {[%clk 1:20:19]} 13. dxe5 {[%clk 1:24:11]}  Nd5 {[%clk 1:20:44]} 14. Bd4 {[%clk 1:14:02]}  Bd7 {[%clk 1:19:55]} 15. Nc3 {[%clk 1:13:57]}  Bc6 {[%clk 1:20:00]} 16. Re1 {[%clk 1:07:52]}  Rc8 {[%clk 1:13:15]} 17. Be4 {[%clk 1:03:43]}  Nxc3 {[%clk 1:13:07]} 18. Bxc3 {[%clk 1:03:58]}  Bxe4 {[%clk 1:13:21]} 19. Rxe4 {[%clk 1:04:22]}  Qb6 {[%clk 1:13:06]} 20. Qe2 {[%clk 1:00:32]}  Rfd8 {[%clk 1:11:13]} 21. Rd1 {[%clk 1:00:19]}  Bc5 {[%clk 1:11:16]} 22. Rxd8+ {[%clk 0:59:28]}  Rxd8 {[%clk 1:11:40]} 23. h3 {[%clk 0:58:24]}  g6 {[%clk 1:09:52]} 24. Qc2 {[%clk 0:55:37]}  Rd5 {[%clk 0:57:31]} 25. Re2 {[%clk 0:52:45]}  Qd8 {[%clk 0:57:16]} 26. Rd2 {[%clk 0:52:48]}  b5 {[%clk 0:53:01]} 27. a3 {[%clk 0:52:05]}  h5 {[%clk 0:50:51]} 28. Rxd5 {[%clk 0:45:37]}  Qxd5 {[%clk 0:50:42]} 29. Qe2 {[%clk 0:45:52]}  Kg7 {[%clk 0:48:55]} 30. Kh2 {[%clk 0:45:33]}  Qb3 {[%clk 0:46:31]} 31. Qf3 {[%clk 0:43:30]}  Qc2 {[%clk 0:46:15]} 32. Qf6+ {[%clk 0:40:25]}  Kg8 {[%clk 0:46:23]} 33. Bd4 {[%clk 0:38:48]}  Bxd4 {[%clk 0:46:32]} 34. Qd8+ {[%clk 0:39:14]}  Kg7 {[%clk 0:46:53]} 35. Qxd4 {[%clk 0:39:40]}  Qe2 {[%clk 0:46:59]} 36. f4 {[%clk 0:36:42]}  a5 {[%clk 0:45:20]} 37. Qd8 {[%clk 0:35:15]}  Qe4 {[%clk 0:44:48]} 38. Qf6+ {[%clk 0:34:39]}  Kg8 {[%clk 0:45:11]} 39. Qd8+ {[%clk 0:34:44]}  Kg7 {[%clk 0:45:34]} 40. Qf6+ {[%clk 0:35:08]}  Kg8 {[%clk 0:46:00]} 41. Qd8+ {[%clk 0:35:32]}  Kg7 {[%clk 0:46:00]} 1/2-1/2


[Site "http://www.chessbomb.com"]

[Event "World Junior Chess Championship U20 2022"]
[White "Samunenkov, Ihor"]
[Black "Yaniv, Yuval"]
[WhiteFideId "14187086"]
[BlackFideId "2823900"]
[WhiteElo "2473"]
[BlackElo "2359"]
[Result "1-0"]
[Round "03"]
[TimeControl "5400+30"]
[Date "2022.10.13"]
[WhiteClock "0:17:28"]
[BlackClock "0:01:05"]

1. d4 {[%clk 1:30:57]}  d5 {[%clk 1:30:02]} 2. c4 {[%clk 1:30:25]}  e6 {[%clk 1:30:18]} 3. Nc3 {[%clk 1:28:47]}  Nf6 {[%clk 1:30:25]} 4. cxd5 {[%clk 1:28:33]}  exd5 {[%clk 1:30:25]} 5. Bg5 {[%clk 1:28:57]}  c6 {[%clk 1:30:50]} 6. e3 {[%clk 1:28:17]}  h6 {[%clk 1:30:51]} 7. Bh4 {[%clk 1:27:40]}  Be7 {[%clk 1:31:00]} 8. Bd3 {[%clk 1:25:35]}  O-O {[%clk 1:31:09]} 9. Nge2 {[%clk 1:25:07]}  Re8 {[%clk 1:31:18]} 10. O-O {[%clk 1:23:43]}  Nbd7 {[%clk 1:29:09]} 11. f3 {[%clk 1:21:58]}  b5 {[%clk 1:26:04]} 12. Qc2 {[%clk 1:09:38]}  Bb7 {[%clk 1:17:32]} 13. Rae1 {[%clk 1:04:30]}  Rc8 {[%clk 1:12:50]} 14. Bf5 {[%clk 0:52:35]}  c5 {[%clk 0:58:04]} 15. dxc5 {[%clk 0:47:26]}  Rxc5 {[%clk 0:57:00]} 16. Qb3 {[%clk 0:45:01]}  Rc4 {[%clk 0:46:52]} 17. Nd4 {[%clk 0:42:47]}  Nc5 {[%clk 0:46:23]} 18. Qd1 {[%clk 0:42:52]}  b4 {[%clk 0:45:27]} 19. Nb1 {[%clk 0:39:40]}  b3 {[%clk 0:42:42]} 20. Nd2 {[%clk 0:36:16]}  Rb4 {[%clk 0:39:50]} 21. a3 {[%clk 0:35:41]}  Rb6 {[%clk 0:40:01]} 22. N2xb3 {[%clk 0:35:36]}  Nxb3 {[%clk 0:34:29]} 23. Nxb3 {[%clk 0:35:59]}  Ba6 {[%clk 0:26:58]} 24. Rf2 {[%clk 0:35:02]}  Qb8 {[%clk 0:27:22]} 25. Bg3 {[%clk 0:32:45]}  Qb7 {[%clk 0:26:39]} 26. Na5 {[%clk 0:32:22]}  Qa8 {[%clk 0:27:02]} 27. Bc7 {[%clk 0:28:33]}  Bc5 {[%clk 0:21:17]} 28. Qc1 {[%clk 0:27:42]}  Bc8 {[%clk 0:09:44]} 29. Qxc5 {[%clk 0:23:27]}  Bxf5 {[%clk 0:10:12]} 30. Bxb6 {[%clk 0:23:17]}  axb6 {[%clk 0:10:20]} 31. Qxb6 {[%clk 0:23:40]}  Nd7 {[%clk 0:06:47]} 32. Qc7 {[%clk 0:22:27]}  Ne5 {[%clk 0:03:35]} 33. Rd1 {[%clk 0:17:36]}  Nd3 {[%clk 0:03:42]} 34. Rfd2 {[%clk 0:17:15]}  Rxe3 {[%clk 0:02:27]} 35. Nc6 {[%clk 0:17:24]}  Qf8 {[%clk 0:00:43]} 36. Qd8 {[%clk 0:17:32]}  Re8 {[%clk 0:00:44]} 37. Qxd5 {[%clk 0:17:38]}  Nxb2 {[%clk 0:00:38]} 38. Rxb2 {[%clk 0:17:23]}  Qxa3 {[%clk 0:01:05]} 39. Rf2 {[%clk 0:17:28]} 1-0


[Site "http://www.chessbomb.com"]

[Event "World Junior Chess Championship U20 2022"]
[White "Nesterov, Arseniy"]
[Black "Prraneeth, Vuppala"]
[WhiteFideId "24198455"]
[BlackFideId "46622373"]
[WhiteElo "2567"]
[BlackElo "2451"]
[Result "1/2-1/2"]
[Round "03"]
[TimeControl "5400+30"]
[Date "2022.10.13"]
[WhiteClock "0:18:29"]
[BlackClock "0:28:59"]

1. d4 {[%clk 1:30:57]}  Nf6 {[%clk 1:30:28]} 2. c4 {[%clk 1:31:17]}  e6 {[%clk 1:30:45]} 3. g3 {[%clk 1:31:39]}  d5 {[%clk 1:30:28]} 4. Bg2 {[%clk 1:32:01]}  dxc4 {[%clk 1:29:49]} 5. Nf3 {[%clk 1:32:23]}  c5 {[%clk 1:27:50]} 6. O-O {[%clk 1:31:28]}  Nc6 {[%clk 1:28:02]} 7. Na3 {[%clk 1:21:43]}  cxd4 {[%clk 1:22:03]} 8. Nxc4 {[%clk 1:21:59]}  Bc5 {[%clk 1:19:35]} 9. a3 {[%clk 1:11:14]}  a5 {[%clk 1:18:24]} 10. Bf4 {[%clk 1:07:44]}  Nd5 {[%clk 1:02:36]} 11. Nfe5 {[%clk 1:06:10]}  Nxf4 {[%clk 0:39:28]} 12. Nxc6 {[%clk 1:04:02]}  bxc6 {[%clk 0:39:49]} 13. gxf4 {[%clk 1:04:04]}  O-O {[%clk 0:35:23]} 14. Ne5 {[%clk 0:57:54]}  Bb7 {[%clk 0:32:44]} 15. Rc1 {[%clk 0:57:43]}  Ba7 {[%clk 0:30:50]} 16. Bxc6 {[%clk 0:52:40]}  Bxc6 {[%clk 0:29:43]} 17. Nxc6 {[%clk 0:52:07]}  Qf6 {[%clk 0:23:49]} 18. Qd2 {[%clk 0:45:27]}  Bb8 {[%clk 0:12:57]} 19. Qxd4 {[%clk 0:26:06]}  Qh4 {[%clk 0:07:54]} 20. Rc4 {[%clk 0:19:12]}  Qg4+ {[%clk 0:04:08]} 21. Kh1 {[%clk 0:19:40]}  Qxe2 {[%clk 0:04:20]} 22. Rg1 {[%clk 0:20:03]}  e5 {[%clk 0:01:03]} 23. fxe5 {[%clk 0:17:59]}  Ba7 {[%clk 0:01:20]} 24. Qg4 {[%clk 0:13:06]}  Qxg4 {[%clk 0:01:46]} 25. Rcxg4 {[%clk 0:13:31]}  Bxf2 {[%clk 0:02:02]} 26. R1g2 {[%clk 0:13:51]}  Bc5 {[%clk 0:02:26]} 27. Rc2 {[%clk 0:05:50]}  Bb6 {[%clk 0:02:38]} 28. b4 {[%clk 0:02:36]}  axb4 {[%clk 0:02:59]} 29. Rxb4 {[%clk 0:03:01]}  Be3 {[%clk 0:02:19]} 30. a4 {[%clk 0:03:02]}  Rfe8 {[%clk 0:00:35]} 31. a5 {[%clk 0:01:43]}  h5 {[%clk 0:00:48]} 32. Kg2 {[%clk 0:01:25]}  Re6 {[%clk 0:00:36]} 33. Kf3 {[%clk 0:01:19]}  Bg1 {[%clk 0:00:37]} 34. h3 {[%clk 0:00:48]}  Ra6 {[%clk 0:00:43]} 35. Rb8+ {[%clk 0:00:48]}  Kh7 {[%clk 0:01:09]} 36. Rc8 {[%clk 0:01:03]}  f6 {[%clk 0:01:17]} 37. Ke4 {[%clk 0:01:01]}  fxe5 {[%clk 0:01:30]} 38. Kd5 {[%clk 0:01:16]}  Rf6 {[%clk 0:01:39]} 39. Kxe5 {[%clk 0:00:33]}  Bf2 {[%clk 0:01:43]} 40. Kd5 {[%clk 0:00:35]}  Be1 {[%clk 0:01:43]} 41. Rc5 {[%clk 0:19:27]}  Bxa5 {[%clk 0:29:25]} 42. Nxa5 {[%clk 0:17:30]}  Rxa5 {[%clk 0:28:46]} 43. Rxa5 {[%clk 0:17:54]}  Rf5+ {[%clk 0:29:13]} 44. Ke4 {[%clk 0:18:18]}  Rxa5 {[%clk 0:29:41]} 45. Kf3 {[%clk 0:18:41]}  Rg5 {[%clk 0:28:59]} 46. Rc4 {[%clk 0:18:29]} 1/2-1/2


[Site "http://www.chessbomb.com"]

[Event "World Junior Chess Championship U20 2022"]
[White "Ivic, Velimir"]
[Black "Boyer, Mahel"]
[WhiteFideId "950122"]
[BlackFideId "45102422"]
[WhiteElo "2553"]
[BlackElo "2445"]
[Result "1-0"]
[Round "03"]
[TimeControl "5400+30"]
[Date "2022.10.13"]
[WhiteClock "0:16:49"]
[BlackClock "0:00:57"]

1. e4 {[%clk 1:30:53]}  e6 {[%clk 1:24:16]} 2. d4 {[%clk 1:31:14]}  d5 {[%clk 1:24:43]} 3. Nc3 {[%clk 1:31:37]}  Nf6 {[%clk 1:25:10]} 4. e5 {[%clk 1:32:02]}  Nfd7 {[%clk 1:25:32]} 5. f4 {[%clk 1:32:25]}  c5 {[%clk 1:25:32]} 6. Nf3 {[%clk 1:32:51]}  Nc6 {[%clk 1:26:20]} 7. Be3 {[%clk 1:33:15]}  a6 {[%clk 1:25:38]} 8. Be2 {[%clk 1:33:04]}  b5 {[%clk 1:24:06]} 9. a3 {[%clk 1:32:12]}  Bb7 {[%clk 1:20:18]} 10. O-O {[%clk 1:31:00]}  Be7 {[%clk 0:49:59]} 11. Na2 {[%clk 1:30:04]}  O-O {[%clk 0:36:01]} 12. Nc1 {[%clk 1:29:40]}  cxd4 {[%clk 0:36:01]} 13. Nxd4 {[%clk 1:30:04]}  Nc5 {[%clk 0:32:42]} 14. c3 {[%clk 1:28:15]}  Ne4 {[%clk 0:30:51]} 15. Ncb3 {[%clk 1:27:23]}  Nxd4 {[%clk 0:23:06]} 16. Nxd4 {[%clk 1:27:16]}  Bc5 {[%clk 0:23:33]} 17. Bd3 {[%clk 1:24:56]}  f5 {[%clk 0:22:12]} 18. Kh1 {[%clk 1:21:14]}  Qe7 {[%clk 0:17:27]} 19. Qe2 {[%clk 1:21:07]}  Kh8 {[%clk 0:15:59]} 20. Nf3 {[%clk 1:07:37]}  Rac8 {[%clk 0:11:04]} 21. Bxc5 {[%clk 1:07:07]}  Nxc5 {[%clk 0:09:00]} 22. Nd4 {[%clk 1:06:16]}  Rg8 {[%clk 0:06:44]} 23. Bc2 {[%clk 0:49:47]}  g5 {[%clk 0:05:27]} 24. g4 {[%clk 0:47:21]}  gxf4 {[%clk 0:00:43]} 25. gxf5 {[%clk 0:44:23]}  Qh4 {[%clk 0:00:31]} 26. Qf2 {[%clk 0:38:57]}  Qh3 {[%clk 0:00:33]} 27. Rg1 {[%clk 0:39:03]}  Ne4 {[%clk 0:00:31]} 28. Qxf4 {[%clk 0:34:32]}  Qh6 {[%clk 0:00:49]} 29. Qf3 {[%clk 0:32:52]}  exf5 {[%clk 0:00:31]} 30. Raf1 {[%clk 0:24:13]}  Nd2 {[%clk 0:00:32]} 31. Rxg8+ {[%clk 0:21:26]}  Rxg8 {[%clk 0:00:57]} 32. Qf4 {[%clk 0:21:38]}  Qxf4 {[%clk 0:00:31]} 33. Rxf4 {[%clk 0:22:03]}  Nc4 {[%clk 0:00:31]} 34. e6 {[%clk 0:17:25]}  Nxb2 {[%clk 0:00:31]} 35. Rxf5 {[%clk 0:17:22]}  Bc8 {[%clk 0:00:31]} 36. Rf7 {[%clk 0:15:34]}  Rg7 {[%clk 0:00:31]} 37. Rf8+ {[%clk 0:15:52]}  Rg8 {[%clk 0:00:59]} 38. e7 {[%clk 0:16:09]}  Bd7 {[%clk 0:01:25]} 39. Bf5 {[%clk 0:16:24]}  Bxf5 {[%clk 0:00:57]} 40. Rxg8+ {[%clk 0:16:49]} 1-0


[Site "http://www.chessbomb.com"]

[Event "World Junior Chess Championship U20 2022"]
[White "Budisavljevic, Luka"]
[Black "Petriashvili, Nikoloz"]
[WhiteFideId "960047"]
[BlackFideId "13611216"]
[WhiteElo "2524"]
[BlackElo "2428"]
[Result "1/2-1/2"]
[Round "03"]
[TimeControl "5400+30"]
[Date "2022.10.13"]
[WhiteClock "0:09:11"]
[BlackClock "0:26:13"]

1. Nf3 {[%clk 1:27:56]}  Nf6 {[%clk 0:00:00]} 2. c4 {[%clk 1:28:11]}  g6 {[%clk 1:27:16]} 3. Nc3 {[%clk 1:28:35]}  d6 {[%clk 1:25:20]} 4. e4 {[%clk 1:24:45]}  c5 {[%clk 1:25:20]} 5. d4 {[%clk 1:25:07]}  cxd4 {[%clk 1:25:22]} 6. Nxd4 {[%clk 1:25:07]}  Nc6 {[%clk 1:25:51]} 7. Be2 {[%clk 1:25:32]}  Bg7 {[%clk 1:21:48]} 8. Be3 {[%clk 1:25:42]}  O-O {[%clk 1:22:07]} 9. h3 {[%clk 1:24:48]}  Bd7 {[%clk 1:20:17]} 10. O-O {[%clk 1:24:30]}  Rc8 {[%clk 1:20:43]} 11. Rc1 {[%clk 1:15:32]}  a6 {[%clk 1:20:43]} 12. Nf3 {[%clk 1:11:46]}  Qa5 {[%clk 1:14:11]} 13. c5 {[%clk 1:02:50]}  Qb4 {[%clk 0:50:46]} 14. cxd6 {[%clk 0:26:45]}  exd6 {[%clk 0:47:42]} 15. Nd2 {[%clk 0:25:59]}  Be6 {[%clk 0:46:56]} 16. Rb1 {[%clk 0:22:51]}  d5 {[%clk 0:42:47]} 17. a3 {[%clk 0:19:12]}  Qe7 {[%clk 0:42:56]} 18. exd5 {[%clk 0:19:25]}  Nxd5 {[%clk 0:43:16]} 19. Nxd5 {[%clk 0:19:32]}  Bxd5 {[%clk 0:43:44]} 20. Bg4 {[%clk 0:16:53]}  Rcd8 {[%clk 0:40:37]} 21. Bb6 {[%clk 0:16:51]}  h5 {[%clk 0:40:36]} 22. Re1 {[%clk 0:12:29]}  Qf6 {[%clk 0:36:18]} 23. Bxd8 {[%clk 0:12:55]}  Rxd8 {[%clk 0:36:45]} 24. Bxh5 {[%clk 0:12:05]}  Ba2 {[%clk 0:30:31]} 25. Rc1 {[%clk 0:07:15]}  gxh5 {[%clk 0:28:33]} 26. Ne4 {[%clk 0:06:44]}  Qg6 {[%clk 0:28:01]} 27. Qf3 {[%clk 0:07:11]}  Bd5 {[%clk 0:26:50]} 28. Rcd1 {[%clk 0:05:58]}  Nd4 {[%clk 0:27:10]} 29. Qd3 {[%clk 0:05:44]}  f5 {[%clk 0:22:46]} 30. Qg3 {[%clk 0:05:46]}  Qxg3 {[%clk 0:19:41]} 31. Nxg3 {[%clk 0:06:15]}  h4 {[%clk 0:19:54]} 32. Nh5 {[%clk 0:06:11]}  Bh8 {[%clk 0:19:44]} 33. Nf4 {[%clk 0:05:46]}  Bc6 {[%clk 0:18:15]} 34. Kh1 {[%clk 0:05:01]}  Kf7 {[%clk 0:18:11]} 35. Rd3 {[%clk 0:03:54]}  Be4 {[%clk 0:15:54]} 36. Rd2 {[%clk 0:04:03]}  Be5 {[%clk 0:15:15]} 37. Nd3 {[%clk 0:04:26]}  Bf6 {[%clk 0:15:12]} 38. Nc5 {[%clk 0:04:17]}  Bc6 {[%clk 0:15:37]} 39. Red1 {[%clk 0:03:02]}  Rg8 {[%clk 0:11:35]} 40. f3 {[%clk 0:00:48]}  Nxf3 {[%clk 0:10:29]} 41. Rd7+ {[%clk 0:00:34]}  Ke8 {[%clk 0:07:45]} 42. Rc7 {[%clk 0:25:32]}  Nd4 {[%clk 0:35:56]} 43. Rc8+ {[%clk 0:25:58]}  Kf7 {[%clk 0:36:22]} 44. Rxg8 {[%clk 0:18:13]}  Kxg8 {[%clk 0:36:48]} 45. b4 {[%clk 0:18:37]}  Kf7 {[%clk 0:35:23]} 46. a4 {[%clk 0:19:02]}  Kg6 {[%clk 0:32:26]} 47. Re1 {[%clk 0:16:16]}  f4 {[%clk 0:32:06]} 48. Rb1 {[%clk 0:14:48]}  Ne2 {[%clk 0:26:49]} 49. b5 {[%clk 0:14:22]}  axb5 {[%clk 0:27:15]} 50. axb5 {[%clk 0:14:49]}  Bd5 {[%clk 0:27:40]} 51. Rd1 {[%clk 0:09:42]}  f3 {[%clk 0:25:11]} 52. Rxd5 {[%clk 0:09:54]}  f2 {[%clk 0:25:32]} 53. Rd1 {[%clk 0:10:11]}  Ng3+ {[%clk 0:25:42]} 54. Kh2 {[%clk 0:10:40]}  f1=Q {[%clk 0:25:19]} 55. Rxf1 {[%clk 0:11:00]}  Nxf1+ {[%clk 0:25:47]} 56. Kh1 {[%clk 0:11:06]}  b6 {[%clk 0:26:15]} 57. Nd7 {[%clk 0:10:08]}  Ng3+ {[%clk 0:26:15]} 58. Kh2 {[%clk 0:10:24]}  Bd4 {[%clk 0:26:40]} 59. Nb8 {[%clk 0:09:49]}  Kf5 {[%clk 0:26:50]} 60. Nc6 {[%clk 0:09:52]}  Ke4 {[%clk 0:26:42]} 61. Ne7 {[%clk 0:09:55]}  Bc5 {[%clk 0:26:05]} 62. Ng6 {[%clk 0:10:14]}  Nf5 {[%clk 0:26:18]} 63. Kh1 {[%clk 0:08:52]}  Bd6 {[%clk 0:26:29]} 64. Nh8 {[%clk 0:08:58]}  Kd5 {[%clk 0:25:51]} 65. Nf7 {[%clk 0:09:07]}  Bg3 {[%clk 0:26:09]} 66. Kg1 {[%clk 0:09:11]}  Ne3 {[%clk 0:26:13]} 1/2-1/2


[Site "http://www.chessbomb.com"]

[Event "World Junior Chess Championship U20 2022"]
[White "Seo, Jung Min"]
[Black "Milikow, Yoav"]
[WhiteFideId "1734687"]
[BlackFideId "2822237"]
[WhiteElo "2520"]
[BlackElo "2412"]
[Result "1/2-1/2"]
[Round "03"]
[TimeControl "5400+30"]
[Date "2022.10.13"]
[WhiteClock "0:51:21"]
[BlackClock "1:21:05"]

1. e4 {[%clk 1:30:58]}  e5 {[%clk 1:30:56]} 2. Nf3 {[%clk 1:30:58]}  Nf6 {[%clk 1:31:18]} 3. Nxe5 {[%clk 1:30:56]}  d6 {[%clk 1:31:41]} 4. Nf3 {[%clk 1:31:21]}  Nxe4 {[%clk 1:32:04]} 5. d4 {[%clk 1:31:08]}  d5 {[%clk 1:32:25]} 6. Bd3 {[%clk 1:31:11]}  Bd6 {[%clk 1:32:41]} 7. O-O {[%clk 1:31:31]}  O-O {[%clk 1:33:01]} 8. c4 {[%clk 1:31:55]}  c6 {[%clk 1:33:22]} 9. Nc3 {[%clk 1:16:47]}  Bf5 {[%clk 1:31:53]} 10. Qb3 {[%clk 1:06:34]}  Qd7 {[%clk 1:30:43]} 11. Re1 {[%clk 1:06:35]}  Nxc3 {[%clk 1:30:25]} 12. Bxf5 {[%clk 1:06:32]}  Qxf5 {[%clk 1:30:46]} 13. bxc3 {[%clk 1:06:35]}  b6 {[%clk 1:29:53]} 14. cxd5 {[%clk 0:59:39]}  cxd5 {[%clk 1:30:13]} 15. Qb5 {[%clk 1:00:01]}  Qd7 {[%clk 1:30:04]} 16. a4 {[%clk 1:00:21]}  Qxb5 {[%clk 1:30:08]} 17. axb5 {[%clk 1:00:48]}  a5 {[%clk 1:30:17]} 18. bxa6 {[%clk 1:00:23]}  Nxa6 {[%clk 1:30:20]} 19. Ba3 {[%clk 0:51:19]}  Bxa3 {[%clk 1:30:41]} 20. Rxa3 {[%clk 0:51:47]}  Nc7 {[%clk 1:30:53]} 21. Rb3 {[%clk 0:51:34]}  b5 {[%clk 1:29:01]} 22. g3 {[%clk 0:51:16]}  f6 {[%clk 1:27:17]} 23. Nh4 {[%clk 0:51:04]}  g6 {[%clk 1:27:11]} 24. Ng2 {[%clk 0:51:27]}  Kf7 {[%clk 1:25:47]} 25. h4 {[%clk 0:51:00]}  Ra2 {[%clk 1:22:43]} 26. Kf1 {[%clk 0:50:44]}  Rfa8 {[%clk 1:22:31]} 27. Ne3 {[%clk 0:51:02]}  h5 {[%clk 1:21:32]} 28. Re2 {[%clk 0:51:17]}  Rxe2 {[%clk 1:21:34]} 29. Kxe2 {[%clk 0:51:45]}  Ra2+ {[%clk 1:21:53]} 30. Kf3 {[%clk 0:51:21]}  Ke6 {[%clk 1:21:05]} 1/2-1/2


[Site "http://www.chessbomb.com"]

[Event "World Junior Chess Championship U20 2022"]
[White "Petkov, Momchil"]
[Black "Kanyamarala, Tarun"]
[WhiteFideId "2921642"]
[BlackFideId "45004714"]
[WhiteElo "2511"]
[BlackElo "2407"]
[Result "1-0"]
[Round "03"]
[TimeControl "5400+30"]
[Date "2022.10.13"]
[WhiteClock "0:07:08"]
[BlackClock "0:03:09"]

1. d4 {[%clk 1:30:45]}  Nf6 {[%clk 1:30:39]} 2. Nf3 {[%clk 1:31:02]}  d5 {[%clk 1:30:06]} 3. Bf4 {[%clk 1:31:11]}  c5 {[%clk 1:29:10]} 4. e3 {[%clk 1:31:25]}  e6 {[%clk 1:21:21]} 5. c3 {[%clk 1:31:18]}  Bd6 {[%clk 1:21:20]} 6. Bb5+ {[%clk 1:31:13]}  Nc6 {[%clk 1:21:20]} 7. Bxc6+ {[%clk 1:31:16]}  bxc6 {[%clk 1:21:40]} 8. Bxd6 {[%clk 1:31:33]}  Qxd6 {[%clk 1:21:59]} 9. Qa4 {[%clk 1:31:51]}  Nd7 {[%clk 1:15:49]} 10. Qa3 {[%clk 1:29:27]}  Rb8 {[%clk 1:08:59]} 11. Nbd2 {[%clk 1:20:52]}  Qe7 {[%clk 0:59:10]} 12. Qxa7 {[%clk 1:11:20]}  Rxb2 {[%clk 0:57:51]} 13. O-O {[%clk 1:11:06]}  cxd4 {[%clk 0:45:24]} 14. cxd4 {[%clk 1:10:46]}  c5 {[%clk 0:43:50]} 15. dxc5 {[%clk 1:03:17]}  Nxc5 {[%clk 0:43:19]} 16. Qa3 {[%clk 1:02:30]}  Rb7 {[%clk 0:31:39]} 17. Rac1 {[%clk 0:46:02]}  Rc7 {[%clk 0:27:50]} 18. Rc3 {[%clk 0:31:52]}  Na6 {[%clk 0:14:22]} 19. Rxc7 {[%clk 0:32:14]}  Qxa3 {[%clk 0:13:37]} 20. Rxc8+ {[%clk 0:32:38]}  Ke7 {[%clk 0:13:56]} 21. Rxh8 {[%clk 0:33:01]}  Nc5 {[%clk 0:10:53]} 22. Rxh7 {[%clk 0:29:59]}  Kf6 {[%clk 0:10:48]} 23. Rh4 {[%clk 0:30:04]}  Qxa2 {[%clk 0:09:38]} 24. e4 {[%clk 0:28:52]}  g6 {[%clk 0:06:43]} 25. exd5 {[%clk 0:23:16]}  exd5 {[%clk 0:06:50]} 26. Rb4 {[%clk 0:17:10]}  Qc2 {[%clk 0:05:40]} 27. Rd4 {[%clk 0:13:03]}  Qa2 {[%clk 0:04:11]} 28. Nb1 {[%clk 0:10:16]}  Ne6 {[%clk 0:03:41]} 29. Nc3 {[%clk 0:10:28]}  Qa3 {[%clk 0:02:39]} 30. Nxd5+ {[%clk 0:10:49]}  Kg7 {[%clk 0:03:05]} 31. Rd2 {[%clk 0:10:11]}  Qa5 {[%clk 0:03:06]} 32. Rfd1 {[%clk 0:09:14]}  Nc5 {[%clk 0:03:23]} 33. Rd4 {[%clk 0:07:59]}  Nb3 {[%clk 0:03:25]} 34. Rf4 {[%clk 0:07:49]}  Nc5 {[%clk 0:03:09]} 35. Ng5 {[%clk 0:07:08]} 1-0


[Site "http://www.chessbomb.com"]